bitfinex-derivatives/quotes_BTCF0:USTF0_20250209
["timestamp","ask_amount","ask_price","bid_price","bid_amount"]
[1739109063621,0.094,95977.0,95966.0,0.00015632]
[1739109063815,0.094,95977.0,95971.0,0.2083646]
[1739109064010,0.094,95977.0,95973.0,0.2083601]
[1739109064207,0.098,95977.0,95973.0,0.2083601]
[1739109064813,0.095,95977.0,95973.0,0.2083601]
[1739109065024,0.095,95977.0,95974.0,0.2083578]
[1739109065214,0.099,95977.0,95974.0,0.2083578]
[1739109065915,0.095,95977.0,95974.0,0.2083578]
[1739109066807,0.3608,95975.0,95966.0,0.00015632]
[1739109067009,0.3608,95975.0,95974.0,0.2083583]
[1739109068318,0.3618,95975.0,95974.0,0.2083583]
[1739109068818,0.3628,95975.0,95974.0,0.2083583]
[1739109069618,0.3638,95975.0,95974.0,0.2083583]
[1739109071611,0.3628,95975.0,95974.0,0.2083583]
[1739109072011,0.3618,95975.0,95974.0,0.2083583]
[1739109072622,0.3608,95975.0,95974.0,0.2083583]
[1739109072809,0.3638,95975.0,95974.0,0.2083583]
[1739109074614,0.3618,95975.0,95974.0,0.2083583]
[1739109074816,0.3628,95975.0,95974.0,0.2083583]
[1739109075020,0.2083735,95967.0,95966.0,0.01214978]
[1739109075214,0.3608,95967.0,95960.0,0.01195852]
[1739109075520,0.2083897,95960.0,95949.0,0.10456]
[1739109075829,0.3608,95951.0,95949.0,0.11686996]
[1739109077015,0.3608,95951.0,95949.0,0.11786996]
[1739109079320,0.3608,95951.0,95949.0,0.01330996]
[1739109079518,0.5692097,95951.0,95949.0,0.01330996]
[1739109079713,0.5692097,95951.0,95950.0,0.10356]
[1739109080624,0.3608,95951.0,95941.0,1.5006]
[1739109080820,0.3608,95951.0,95940.0,0.1]
[1739109080821,0.5692278,95942.0,95940.0,0.1]
[1739109081214,0.5692278,95942.0,95940.0,1.6]
[1739109081411,0.0348,95941.0,95940.0,0.1]
[1739109081921,0.3608,95951.0,95950.0,0.2084104]
[1739109083219,0.3608,95951.0,95950.0,0.3116104]
[1739109083425,0.3608,95951.0,95950.0,0.3126104]
[1739109083724,0.3608,95951.0,95950.0,0.3124504]
[1739109085526,0.3608,95951.0,95950.0,0.32484701]
[1739109087027,0.0349,95957.0,95951.0,0.2084073]
[1739109087227,0.3608,95952.0,95951.0,0.2084073]
[1739109088324,0.208428,95942.0,95940.0,0.1]
[1739109088513,0.3608,95941.0,95940.0,0.1]
[1739109089318,0.36152,95952.0,95940.0,0.1122257]
[1739109089519,0.36152,95952.0,95946.0,0.2084188]
[1739109089520,0.3608,95952.0,95946.0,0.2084188]
[1739109090017,0.3608,95952.0,95947.0,1.7084165]
[1739109090223,0.3608,95952.0,95949.0,0.2084125]
[1739109091034,0.3608,95952.0,95941.0,0.1022]
[1739109091334,0.3608,95952.0,95950.0,0.2084091]
[1739109091721,0.3618,95952.0,95950.0,0.2084091]
[1739109092527,0.3608,95952.0,95950.0,0.2084091]
[1739109095042,0.3608,95952.0,95950.0,0.3094091]
[1739109098235,0.3608,95952.0,95950.0,0.32133613]
[1739109098732,0.3628,95952.0,95950.0,0.32133613]
[1739109100434,0.3638,95952.0,95950.0,0.32133613]
[1739109100937,0.003,95952.0,95950.0,0.32133613]
[1739109101333,0.002,95952.0,95950.0,0.32133613]
[1739109101639,0.003,95952.0,95950.0,0.32133613]
[1739109102336,0.3608,95955.0,95950.0,0.32133613]
[1739109102532,0.001,95952.0,95950.0,0.32133613]
[1739109103841,0.001,95952.0,95950.0,0.51133613]
[1739109104040,0.001,95952.0,95951.0,0.0337]
[1739109104340,0.00015632,95960.0,95955.0,0.2083994]
[1739109104935,0.3608,95959.0,95955.0,0.2083994]
[1739109106039,0.3608,95959.0,95957.0,0.2083932]
[1739109107643,0.3638,95959.0,95957.0,0.2083932]
[1739109108444,0.3658,95959.0,95957.0,0.2083932]
[1739109113648,0.3628,95959.0,95957.0,0.2083932]
[1739109113852,0.3658,95959.0,95957.0,0.2083932]
[1739109115645,0.3638,95959.0,95957.0,0.2083932]
[1739109115846,0.3658,95959.0,95957.0,0.2083932]
[1739109117851,0.3658,95959.0,95957.0,0.3057532]
[1739109118051,0.3658,95959.0,95957.0,0.3056732]
[1739109119347,0.3668,95959.0,95957.0,0.3056732]
[1739109120147,0.006,95959.0,95957.0,0.3356732]
[1739109120350,0.006,95959.0,95957.0,0.3056732]
[1739109120647,0.006,95959.0,95958.0,1.5]
[1739109121250,0.003,95959.0,95957.0,0.3056732]
[1739109121445,0.006,95959.0,95957.0,0.3056732]
[1739109121754,0.005,95959.0,95957.0,0.3056732]
[1739109122549,0.003,95959.0,95957.0,0.3056732]
[1739109122846,0.005,95959.0,95957.0,0.3056732]
[1739109123756,0.002,95959.0,95957.0,0.3056732]
[1739109123943,0.005,95959.0,95957.0,0.3056732]
[1739109124347,0.003,95959.0,95957.0,0.2083932]
[1739109124652,0.005,95959.0,95958.0,0.09652]
[1739109126541,0.005,95959.0,95957.0,0.2083932]
[1739109126737,0.005,95959.0,95957.0,0.3049532]
[1739109127152,0.005,95959.0,95957.0,0.09656]
[1739109127545,0.006,95959.0,95957.0,0.09656]
[1739109128255,0.003,95959.0,95957.0,0.09656]
[1739109128450,0.005,95959.0,95957.0,0.09656]
[1739109130752,0.006,95959.0,95957.0,0.09656]
[1739109131848,0.003,95959.0,95957.0,0.09656]
[1739109132051,0.005,95959.0,95954.0,0.2084002]
[1739109132244,0.005,95959.0,95955.0,0.09636]
[1739109133562,0.004,95959.0,95955.0,0.09636]
[1739109133859,0.005,95959.0,95956.0,0.09624]
[1739109134654,0.003,95959.0,95956.0,0.09624]
[1739109135350,0.002,95959.0,95957.0,0.2083952]
[1739109135552,0.004,95959.0,95957.0,0.2083952]
[1739109136762,0.005,95959.0,95957.0,0.2083952]
[1739109137062,0.003,95959.0,95957.0,0.2083952]
[1739109137263,0.006,95959.0,95957.0,0.2083952]
[1739109137854,0.003,95959.0,95957.0,0.2083952]
[1739109138061,0.005,95959.0,95957.0,0.2083952]
[1739109138260,0.002,95959.0,95957.0,0.2083952]
[1739109138461,0.005,95959.0,95957.0,0.2083952]
[1739109138656,0.005,95959.0,95957.0,0.4183952]
[1739109138964,0.005,95959.0,95958.0,0.0395]
[1739109139171,0.005,95959.0,95958.0,1.6795]
[1739109139555,0.005,95959.0,95958.0,0.0395]
[1739109140965,0.006,95959.0,95958.0,0.0395]
[1739109141265,0.006,95959.0,95957.0,0.2083952]
[1739109141964,0.006,95959.0,95958.0,0.0966]
[1739109143965,0.005,95959.0,95958.0,0.0966]
[1739109145357,0.006,95959.0,95958.0,0.0966]
[1739109146261,0.006,95959.0,95957.0,0.3043152]
[1739109148462,0.00015632,95960.0,95959.0,0.2083908]
[1739109148667,0.3608,95975.0,95971.0,0.208364]
[1739109149870,0.3608,95975.0,95963.0,0.00015632]
[1739109150169,0.3608,95975.0,95966.0,0.2083747]
[1739109150869,0.3698,95975.0,95966.0,0.2083747]
[1739109151070,0.3698,95975.0,95964.0,0.0816]
[1739109151668,0.3668,95975.0,95969.0,0.208368]
[1739109152062,0.3748,95975.0,95970.0,0.2083664]
[1739109152776,0.3718,95975.0,95970.0,0.2083664]
[1739109153164,0.3688,95975.0,95970.0,0.2083664]
[1739109153362,0.3748,95975.0,95970.0,0.2083664]
[1739109154270,0.3768,95975.0,95970.0,0.2083664]
[1739109157268,0.016,95975.0,95970.0,0.2083664]
[1739109157470,0.3768,95975.0,95970.0,0.2083664]
[1739109158473,0.2083647,95971.0,95969.0,0.01485962]
[1739109158658,0.2083683,95970.0,95963.0,0.00015632]
[1739109158863,0.2083683,95970.0,95967.0,0.09436]
[1739109159370,0.2083694,95969.0,95967.0,0.09436]
[1739109162173,0.013,95970.0,95967.0,0.09436]
[1739109162371,0.006,95970.0,95967.0,0.09436]
[1739109162674,0.007,95969.0,95967.0,0.09436]
[1739109163480,0.013,95969.0,95967.0,0.09436]
[1739109163868,0.006,95969.0,95967.0,0.09436]
[1739109164766,0.006,95969.0,95968.0,0.09376]
[1739109165680,0.004,95969.0,95968.0,0.09376]
[1739109166179,0.002,95969.0,95968.0,0.09376]
[1739109166372,0.003,95969.0,95968.0,0.09376]
[1739109166573,0.005,95969.0,95968.0,0.09376]
[1739109166976,0.002,95969.0,95968.0,0.09476]
[1739109167280,0.001,95969.0,95968.0,0.09476]
[1739109167479,0.003,95969.0,95968.0,0.09376]
[1739109168970,0.002,95969.0,95968.0,0.09376]
[1739109169274,0.005,95969.0,95968.0,0.09376]
[1739109169580,0.002,95969.0,95968.0,0.09376]
[1739109169777,0.005,95969.0,95968.0,0.09376]
[1739109172084,0.006,95969.0,95968.0,0.09376]
[1739109172283,0.005,95969.0,95968.0,0.09376]
[1739109172777,0.2083672,95970.0,95968.0,0.09376]
[1739109173483,0.004,95969.0,95968.0,0.09376]
[1739109173688,0.008,95969.0,95968.0,0.09376]
[1739109174182,0.2163691,95969.0,95968.0,0.09376]
[1739109174677,0.008,95969.0,95963.0,0.00015632]
[1739109174883,0.2084037,95954.0,95952.0,0.77044]
[1739109175179,0.3608,95953.0,95952.0,0.78541358]
[1739109175984,0.3608,95953.0,95952.0,0.87805358]
[1739109180198,0.3608,95953.0,95952.0,0.78541358]
[1739109180499,0.3608,95953.0,95952.0,0.87729358]
[1739109182007,0.3608,95953.0,95952.0,0.86232]
[1739109183312,0.3608,95953.0,95952.0,0.77044]
[1739109184606,0.4045,95953.0,95952.0,0.70452138]
[1739109191603,0.7045,95953.0,95940.0,1e-07]
[1739109191804,0.5692299,95941.0,95940.0,1e-07]
[1739109192200,0.8692299,95941.0,95940.0,1e-07]
[1739109192999,0.6618,95941.0,95919.0,0.77056]
[1739109193203,0.3608,95920.0,95892.0,1.54156]
[1739109193403,0.2085161,95902.0,95875.0,0.1245]
[1739109193602,0.2085161,95902.0,95880.0,0.2085613]
[1739109193903,0.5085161,95902.0,95881.0,0.2085597]
[1739109194210,0.5085161,95902.0,95901.0,0.00118997]
[1739109195197,0.0521346,95891.0,95872.0,0.01451381]
[1739109195396,0.3608,95873.0,95872.0,0.2085789]
[1739109196010,0.001,95902.0,95872.0,0.37515184]
[1739109196205,0.3608,95895.0,95885.0,0.20855]
[1739109196511,0.2085535,95885.0,95878.0,0.2085667]
[1739109196699,0.3608,95886.0,95829.0,0.77132]
[1739109196901,0.0426,95901.0,95829.0,0.77132]
[1739109196902,0.3608,95873.0,95861.0,0.17526]
[1739109197102,0.3608,95873.0,95869.0,0.2085844]
[1739109197611,0.5693781,95873.0,95869.0,0.2085844]
[1739109198201,0.2085867,95869.0,95857.0,0.00015641]
[1739109198403,0.2085867,95869.0,95863.0,0.2085995]
[1739109198610,0.36252,95873.0,95857.0,0.00015641]
[1739109198802,0.3618,95873.0,95871.0,0.2085806]
[1739109199205,0.3608,95873.0,95871.0,0.2085806]
[1739109199913,0.3608,95873.0,95872.0,0.00114161]
[1739109200499,0.5693777,95873.0,95872.0,0.00114161]
[1739109201804,0.5773777,95873.0,95872.0,0.00114161]
[1739109202206,0.5773777,95873.0,95872.0,0.00142371]
[1739109204613,0.5773777,95873.0,95872.0,0.04242371]
[1739109205718,0.5773777,95873.0,95872.0,0.08582371]
[1739109205910,0.3688,95873.0,95872.0,0.08582371]
[1739109206710,0.3688,95873.0,95872.0,0.03507321]
[1739109207707,0.008,95873.0,95872.0,0.39587321]
[1739109207912,0.008,95873.0,95872.0,0.12583321]
[1739109208113,0.00015641,95877.0,95872.0,0.48663321]
[1739109208422,0.3608,95903.0,95872.0,0.48663321]
[1739109208423,0.3608,95903.0,95875.0,0.2085732]
[1739109208608,0.3608,95903.0,95890.0,0.2085391]
[1739109208810,0.3608,95895.0,95891.0,0.0394]
[1739109210025,0.3608,95895.0,95892.0,0.0394]
[1739109210915,0.3628,95895.0,95892.0,0.0394]
[1739109211715,0.3638,95895.0,95892.0,0.2479344]
[1739109212115,0.3638,95895.0,95893.0,0.2085329]
[1739109212623,0.3618,95895.0,95893.0,0.2085329]
[1739109212816,0.3638,95895.0,95893.0,0.2085329]
[1739109213715,0.003,95895.0,95893.0,0.2085329]
[1739109214210,0.001,95895.0,95893.0,0.2085329]
[1739109214416,0.002,95895.0,95893.0,0.2085329]
[1739109214618,0.001,95895.0,95893.0,0.2085329]
[1739109214918,0.36095641,95903.0,95895.0,0.2085299]
[1739109215223,0.36095641,95903.0,95896.0,0.0436]
[1739109215420,0.36095641,95903.0,95899.0,0.00142317]
[1739109216118,0.36095641,95903.0,95901.0,0.2085161]
[1739109216317,0.36095641,95903.0,95902.0,0.00142317]
[1739109216525,0.00015641,95903.0,95902.0,0.00142317]
[1739109217418,0.00015641,95903.0,95902.0,0.01576734]
[1739109218227,0.00515641,95903.0,95902.0,0.01576734]
[1739109218910,0.01015641,95903.0,95902.0,0.37656734]
[1739109222828,0.01015641,95903.0,95902.0,0.01576734]
[1739109223723,0.23965641,95906.0,95902.0,0.10528734]
[1739109224033,0.21609538,95942.0,95927.0,0.2084603]
[1739109224321,0.21609538,95942.0,95927.0,0.2980603]
[1739109224526,0.21609538,95942.0,95927.0,0.29948347]
[1739109225133,0.00015641,95937.0,95927.0,0.29948347]
[1739109225827,0.00015641,95937.0,95927.0,0.09102317]
[1739109226220,0.00015641,95937.0,95933.0,0.2084463]
[1739109226527,0.00015641,95937.0,95935.0,0.00142317]
[1739109227525,0.00015641,95937.0,95936.0,0.00142317]
[1739109228227,0.00915641,95937.0,95936.0,0.00142317]
[1739109228429,0.01715641,95937.0,95936.0,0.00142317]
[1739109229019,0.01715641,95937.0,95936.0,0.00242317]
[1739109229422,0.01715641,95937.0,95927.0,0.1319]
[1739109229629,0.01715641,95937.0,95935.0,0.2084419]
[1739109229827,0.00815641,95937.0,95935.0,0.2084419]
[1739109230029,0.01715641,95937.0,95935.0,0.2084419]
[1739109230824,0.01715641,95937.0,95936.0,1.5435]
[1739109231030,0.00072,95941.0,95936.0,1.9043]
[1739109231225,0.0434,95958.0,95936.0,1.9043]
[1739109231624,0.009,95937.0,95936.0,1.9043]
[1739109231821,0.0434,95958.0,95953.0,0.208402]
[1739109232024,0.0434,95958.0,95954.0,0.08852]
[1739109232225,0.18435774,95960.0,95954.0,0.08852]
[1739109232830,0.18435774,95960.0,95957.0,0.2083951]
[1739109233024,0.009,95958.0,95957.0,0.2083951]
[1739109233927,0.009,95958.0,95957.0,0.2093951]
[1739109235233,0.018,95958.0,95957.0,0.2986751]
[1739109237334,0.018,95958.0,95957.0,0.002]
[1739109237535,0.018,95958.0,95957.0,0.09004]
[1739109238529,0.018,95958.0,95957.0,0.08988]
[1739109239236,0.018,95958.0,95957.0,0.002]
[1739109239538,0.018,95958.0,95957.0,0.08976]
[1739109240422,0.018,95958.0,95956.0,0.0876]
[1739109240827,0.018,95958.0,95946.0,0.00015632]
[1739109241023,0.5692169,95947.0,95946.0,0.00015632]
[1739109241228,0.3608,95947.0,95946.0,0.00015632]
[1739109242539,0.3698,95947.0,95946.0,0.00115632]
[1739109243528,0.3778,95947.0,95946.0,0.00215632]
[1739109245540,0.4194,95947.0,95946.0,0.00215632]
[1739109245735,0.7194,95947.0,95925.0,0.2084646]
[1739109245935,0.7194,95947.0,95920.0,0.0874]
[1739109245936,0.3608,95929.0,95920.0,0.0874]
[1739109246134,0.3608,95921.0,95920.0,0.2958755]
[1739109246640,0.3608,95921.0,95920.0,0.0874]
[1739109247344,0.2084771,95920.0,95918.0,0.77156]
[1739109247534,0.2084771,95920.0,95918.0,0.7450835]
[1739109247930,0.2084828,95917.0,95913.0,0.00156389]
[1739109248134,0.2084907,95913.0,95911.0,0.00015632]
[1739109248745,0.2084944,95912.0,95887.0,0.77064]
[1739109248941,0.3608,95896.0,95888.0,0.208543]
[1739109249136,0.0406,95895.0,95889.0,0.2085411]
[1739109249946,0.0406,95895.0,95887.0,0.77124]
[1739109250242,0.5693451,95888.0,95887.0,0.77064]
[1739109251436,0.5763451,95888.0,95887.0,0.77064]
[1739109251650,0.5833451,95888.0,95887.0,0.77164]
[1739109252142,0.6255451,95888.0,95887.0,0.77164]
[1739109252351,0.9255451,95888.0,95887.0,0.001]
[1739109252644,0.9245451,95888.0,95887.0,0.001]
[1739109253148,0.2085559,95883.0,95882.0,0.0001564]
[1739109254851,0.2155559,95883.0,95882.0,0.0001564]
[1739109255053,0.2235559,95883.0,95882.0,0.0001564]
[1739109257449,0.015,95883.0,95882.0,0.0001564]
[1739109260045,0.015,95883.0,95868.0,0.05372854]
[1739109260245,0.3608,95878.0,95868.0,0.05312854]
[1739109260552,0.3608,95878.0,95876.0,0.2085691]
[1739109260746,0.3608,95878.0,95868.0,0.05312854]
[1739109260747,0.015,95883.0,95870.0,0.3608]
[1739109260944,0.015,95883.0,95882.0,0.2085581]
[1739109261255,0.009,95883.0,95882.0,0.2085581]
[1739109261446,0.001,95883.0,95882.0,0.2085581]
[1739109262155,0.0001564,95886.0,95885.0,0.2085516]
[1739109262349,0.3608,95901.0,95900.0,0.208519]
[1739109263250,0.36136001,95917.0,95899.0,0.0425]
[1739109263452,0.0001564,95910.0,95902.0,0.2085144]
[1739109263651,0.3608,95903.0,95902.0,0.2085144]
[1739109264454,0.208522,95899.0,95892.0,0.08764]
[1739109264958,0.3608,95903.0,95892.0,0.08764]
[1739109265158,0.3668,95903.0,95892.0,0.08764]
[1739109265347,0.3708,95903.0,95892.0,0.08764]
[1739109265547,0.3708,95903.0,95894.0,0.2085312]
[1739109266654,0.3708,95903.0,95892.0,0.08764]
[1739109266850,0.3708,95903.0,95897.0,0.2085242]
[1739109267257,0.007,95899.0,95897.0,0.2085242]
[1739109267760,0.36836001,95903.0,95892.0,0.08764]
[1739109267957,0.37636001,95903.0,95898.0,0.2085217]
[1739109268255,0.3688,95903.0,95902.0,0.2085146]
[1739109268449,0.3608,95903.0,95902.0,0.2085146]
[1739109269159,0.3668,95903.0,95902.0,0.2085146]
[1739109269761,0.006,95903.0,95902.0,0.2085146]
[1739109271157,0.01,95903.0,95902.0,0.2085146]
[1739109271551,0.004,95903.0,95902.0,0.2515146]
[1739109271751,0.01,95903.0,95902.0,0.2515146]
[1739109272054,0.01,95903.0,95902.0,0.2916146]
[1739109273762,0.3608,95917.0,95902.0,0.0831]
[1739109273959,0.3608,95929.0,95908.0,0.2085009]
[1739109274156,0.3608,95929.0,95911.0,0.2084951]
[1739109274354,0.3608,95929.0,95921.0,0.2084729]
[1739109275152,0.3628,95929.0,95921.0,0.2084729]
[1739109275456,0.3628,95929.0,95915.0,0.208642]
[1739109275656,0.3608,95919.0,95915.0,0.208642]
[1739109275855,0.3608,95919.0,95916.0,0.2084837]
[1739109276060,0.2085255,95897.0,95895.0,0.00068]
[1739109276357,0.0521241,95911.0,95873.0,0.1245]
[1739109276358,0.7216,95896.0,95873.0,0.1245]
[1739109276558,0.3608,95878.0,95873.0,0.1245]
[1739109276950,0.3608,95878.0,95874.0,0.08716]
[1739109278361,0.5693675,95878.0,95874.0,0.08716]
[1739109278556,0.3608,95878.0,95874.0,0.08816]
[1739109278756,0.208571,95877.0,95874.0,0.09216]
[1739109279152,0.2085734,95875.0,95874.0,0.004]
[1739109280070,0.2085734,95875.0,95874.0,0.00513691]
[1739109281157,0.2085734,95875.0,95874.0,0.00113691]
[1739109281359,0.2085734,95875.0,95874.0,0.00313691]
[1739109281963,0.2135734,95875.0,95874.0,0.00313691]
[1739109282362,0.2165734,95875.0,95874.0,0.00113691]
[1739109284064,0.008,95875.0,95874.0,0.00113691]
[1739109284573,0.008,95875.0,95874.0,1.50113691]
[1739109285374,0.008,95875.0,95874.0,0.00113691]
[1739109286069,0.006,95875.0,95874.0,0.00113691]
[1739109286568,0.004,95875.0,95874.0,0.00113691]
[1739109286974,0.0441,95875.0,95874.0,0.00113691]
[1739109287674,0.0431,95875.0,95874.0,0.00113691]
[1739109287969,0.0451,95875.0,95874.0,0.00113691]
[1739109288564,0.0421,95875.0,95874.0,0.00113691]
[1739109288862,0.0461,95875.0,95874.0,0.00113691]
[1739109289063,0.0461,95875.0,95866.0,0.00172105]
[1739109289265,0.3608,95867.0,95866.0,0.00172105]
[1739109290861,0.3608,95867.0,95866.0,0.00372105]
[1739109291266,0.2085838,95871.0,95866.0,0.00372105]
[1739109291863,0.001,95867.0,95866.0,0.00372105]
[1739109292264,0.2085838,95871.0,95866.0,0.00372105]
[1739109292464,0.2085899,95868.0,95866.0,0.00372105]
[1739109293273,0.001,95867.0,95866.0,0.00372105]
[1739109294674,0.2105899,95868.0,95866.0,0.00372105]
[1739109294868,0.2105899,95868.0,95866.0,0.00272105]
[1739109295272,0.002,95867.0,95866.0,0.00272105]
[1739109295770,0.2085899,95868.0,95866.0,0.00172105]
[1739109295973,0.2105899,95868.0,95866.0,0.00272105]
[1739109296361,0.002,95867.0,95866.0,0.00272105]
[1739109298572,0.2105899,95868.0,95866.0,0.00272105]
[1739109299166,0.2085899,95868.0,95866.0,0.00272105]
[1739109299362,0.002,95867.0,95866.0,0.00272105]
[1739109299567,0.3628,95867.0,95866.0,0.00272105]
[1739109299770,0.3628,95867.0,95866.0,0.04272105]
[1739109299771,0.002,95867.0,95866.0,0.04272105]
[1739109299968,0.002,95868.0,95867.0,0.2085908]
[1739109300472,0.002,95868.0,95867.0,1.7085908]
[1739109300968,0.002,95868.0,95867.0,0.2085908]
[1739109301568,0.3608,95875.0,95868.0,0.208588]
[1739109301878,0.3608,95875.0,95873.0,0.2085763]
[1739109302078,0.2085586,95882.0,95874.0,0.12624]
[1739109302279,0.2085513,95886.0,95879.0,0.2085631]
[1739109302468,0.2085373,95892.0,95883.0,0.2085542]
[1739109303180,0.36136001,95898.0,95883.0,0.3608]
[1739109303364,0.3608,95898.0,95883.0,0.3608]
[1739109303568,0.005,95885.0,95884.0,0.2085538]
[1739109303768,0.3608,95898.0,95897.0,0.2085255]
[1739109304374,0.3608,95901.0,95897.0,0.2507255]
[1739109304570,0.3608,95901.0,95898.0,0.0396]
[1739109305580,0.2085118,95904.0,95898.0,0.0396]
[1739109305781,0.3648,95901.0,95898.0,0.0396]
[1739109306173,0.3608,95901.0,95898.0,0.0396]
[1739109306477,0.004,95901.0,95899.0,0.2085199]
[1739109306681,0.004,95901.0,95900.0,0.0434]
[1739109307469,0.007,95901.0,95900.0,0.0434]
[1739109307675,0.0001564,95907.0,95900.0,0.3434]
[1739109307977,0.0001564,95907.0,95906.0,0.208506]
[1739109308276,0.2085203,95900.0,95898.0,0.0396]
[1739109308473,0.3638,95901.0,95898.0,0.0396]
[1739109308674,0.3678,95901.0,95898.0,0.0396]
[1739109309181,0.3638,95901.0,95898.0,0.0396]
[1739109309381,0.3638,95901.0,95899.0,0.08604]
[1739109310471,0.3608,95901.0,95899.0,0.08604]
[1739109310681,0.3638,95901.0,95899.0,0.08604]
[1739109311069,0.3678,95901.0,95899.0,0.08604]
[1739109311376,0.3668,95901.0,95899.0,0.2945602]
[1739109311880,0.3668,95901.0,95898.0,0.0396]
[1739109312192,0.5753185,95901.0,95900.0,0.08588]
[1739109312784,0.2085207,95900.0,95894.0,0.5693306]
[1739109314275,0.2155207,95900.0,95894.0,0.5703306]
[1739109314970,0.015,95900.0,95894.0,0.002]
[1739109315182,0.5693299,95895.0,95894.0,0.002]
[1739109315483,0.2085429,95889.0,95873.0,0.08552]
[1739109315785,0.5693429,95889.0,95873.0,0.08552]
[1739109315986,0.5693429,95889.0,95883.0,0.01303157]
[1739109316993,0.5693429,95889.0,95873.0,0.08552]
[1739109317288,0.5693429,95889.0,95871.0,0.77104]
[1739109317492,0.5693429,95889.0,95871.0,0.8564]
[1739109317695,0.5763429,95889.0,95888.0,0.0011564]
[1739109318395,0.5843429,95889.0,95888.0,0.0021564]
[1739109328502,0.2085799,95872.0,95871.0,0.77104]
[1739109328705,0.5693799,95872.0,95871.0,0.77104]
[1739109329907,0.5693799,95872.0,95871.0,0.77204]
[1739109330707,0.5713799,95872.0,95871.0,0.77204]
[1739109334802,0.2105799,95872.0,95871.0,0.77204]
[1739109335106,0.5713799,95872.0,95871.0,0.77204]
[1739109338405,0.5713799,95872.0,95871.0,0.001]
[1739109340409,0.2085908,95867.0,95866.0,0.00156465]
[1739109343618,0.2085908,95867.0,95866.0,0.00456465]
[1739109344697,0.2095908,95867.0,95866.0,0.00456465]
[1739109344902,0.2095908,95867.0,95866.0,0.00256465]
[1739109345414,0.2095908,95867.0,95866.0,0.00086993]
[1739109349115,0.2493908,95867.0,95866.0,0.00086993]
[1739109349415,0.2085995,95863.0,95854.0,0.7712]
[1739109349714,0.2085995,95863.0,95855.0,0.01286772]
[1739109350514,0.2085995,95863.0,95862.0,0.0031564]
[1739109350817,0.2085995,95863.0,95862.0,0.0041564]
[1739109354220,0.36136001,95868.0,95862.0,0.0041564]
[1739109354427,0.3608,95868.0,95867.0,0.2085908]
[1739109354615,0.3608,95868.0,95862.0,0.0041564]
[1739109357629,0.2085995,95863.0,95862.0,0.0041564]
[1739109358912,0.2085995,95863.0,95862.0,0.0031564]
[1739109359224,0.2085995,95863.0,95862.0,0.0041564]
[1739109363720,0.3608,95868.0,95862.0,0.0041564]
[1739109363919,0.3608,95868.0,95863.0,0.1278]
[1739109364324,0.18435774,95871.0,95863.0,0.1278]
[1739109364523,0.18435774,95871.0,95869.0,0.2085863]
[1739109365317,0.11765774,95871.0,95869.0,0.2085863]
[1739109365529,0.11765774,95871.0,95870.0,0.3608]
[1739109365721,0.11965774,95871.0,95870.0,0.3608]
[1739109366429,0.11965774,95871.0,95870.0,0.08156]
[1739109368233,0.002,95871.0,95870.0,0.08156]
[1739109368728,0.002,95871.0,95870.0,0.44236]
[1739109370033,0.3608,95886.0,95880.0,0.2085625]
[1739109371323,0.3608,95897.0,95885.0,0.2085516]
[1739109371534,0.3608,95897.0,95879.0,0.3608]
[1739109371535,0.2085034,95908.0,95897.0,0.2085244]
[1739109371740,0.2085034,95908.0,95890.0,0.2085408]
[1739109372033,0.2085034,95908.0,95888.0,0.3608]
[1739109372231,0.3608,95909.0,95907.0,0.2085033]
[1739109372529,0.3608,95909.0,95908.0,0.0429]
[1739109372728,0.2084832,95917.0,95908.0,0.2514008]
[1739109373331,0.0001564,95918.0,95915.0,0.2084864]
[1739109374332,0.0001564,95918.0,95908.0,0.26368557]
[1739109374533,0.0001564,95918.0,95909.0,0.0441]
[1739109375037,0.0061564,95918.0,95915.0,0.001]
[1739109375334,0.009,95917.0,95915.0,0.001]
[1739109375537,0.009,95917.0,95909.0,0.2525984]
[1739109376226,0.0111564,95918.0,95915.0,0.001]
[1739109376530,0.219637,95918.0,95915.0,0.001]
[1739109377530,0.213637,95918.0,95911.0,0.2084936]
[1739109377727,0.005,95917.0,95911.0,0.2084936]
[1739109378333,0.219637,95918.0,95915.0,0.001]
[1739109378738,0.005,95917.0,95911.0,0.2084936]
[1739109378925,0.01,95917.0,95911.0,0.2084936]
[1739109379431,0.005,95917.0,95914.0,0.2084876]
[1739109380229,0.005,95917.0,95915.0,0.2084857]
[1739109380539,0.2084508,95932.0,95926.0,0.2084616]
[1739109380728,0.2084508,95932.0,95927.0,0.08068]
[1739109381231,0.0445,95940.0,95936.0,0.2084406]
[1739109381622,0.2529322,95940.0,95936.0,0.2084406]
[1739109381844,0.2529322,95940.0,95928.0,0.045]
[1739109381845,0.2084389,95937.0,95932.0,0.2084491]
[1739109382341,0.2084389,95937.0,95936.0,0.001]
[1739109382840,0.2084389,95937.0,95936.0,0.002]
[1739109383736,0.2084389,95937.0,95936.0,0.001]
[1739109383934,0.2084389,95937.0,95936.0,0.002]
[1739109384323,0.2084389,95937.0,95936.0,0.001]
[1739109384527,0.2144389,95937.0,95936.0,0.002]
[1739109385042,0.2194389,95937.0,95936.0,0.001]
[1739109391944,0.2194389,95937.0,95936.0,3.825e-05]
[1739109397549,0.5802389,95937.0,95936.0,3.825e-05]
[1739109400052,0.57356944,95937.0,95936.0,3.825e-05]
[1739109404352,0.93436944,95937.0,95936.0,3.825e-05]
[1739109404553,0.98505061,95937.0,95936.0,3.825e-05]
[1739109412754,1.16915608,95937.0,95936.0,3.825e-05]
[1739109415853,0.98505061,95937.0,95936.0,3.825e-05]
[1739109431463,0.98505061,95937.0,95936.0,0.04633825]
[1739109432159,0.78328117,95937.0,95936.0,0.04633825]
[1739109432365,0.42248117,95937.0,95936.0,0.04633825]
[1739109433359,0.06168117,95937.0,95936.0,0.04633825]
[1739109434465,0.27011977,95937.0,95936.0,0.04633825]
[1739109437066,0.2194386,95937.0,95936.0,0.04633825]
[1739109437764,0.011,95937.0,95936.0,0.04633825]